fUSD/lending_fUSD_20260429
["ID","MTS","AMOUNT","RATE_DAILY","PERIOD"]
[421324853,1777434661126,-454.0,0.00031172,30]
[421324854,1777434661135,-159.0,0.00031172,30]
[421324855,1777434661145,-375.0,0.00031172,30]
[421324856,1777434661155,-589.0,0.00031172,30]
[421324857,1777434661165,-157.81876838,0.00031179,2]
[421324858,1777434661175,-150.0,0.00031179,2]
[421324859,1777434661186,-150.0,0.00031179,2]
[421324860,1777434661196,-250.75990034,0.00031179,2]
[421324861,1777434661206,-280.0,0.00031193,19]
[421324862,1777434661216,-373.14,0.000312,7]
[421324863,1777434661225,-2000.0,0.000312,2]
[421324864,1777434661235,-3532.0,0.00031268,2]
[421324865,1777434661246,-1049.0,0.00031268,2]
[421324866,1777434661256,-156.61254835,0.00031273,89]
[421324867,1777434661266,-506.0,0.000314,15]
[421324868,1777434661276,-150.0,0.00031452,22]
[421324869,1777434661286,-150.0,0.0003147,2]
[421324870,1777434661296,-165.54612402,0.00031492,90]
[421324871,1777434661306,-199.69703545,0.000315,2]
[421324872,1777434661316,-150.0,0.000315,2]
[421324873,1777434661326,-1318.08354222,0.00031657,90]
[421324874,1777434661337,-196.83,0.000317,2]
[421324875,1777434661347,-152.52739023,0.0003175,90]
[421324876,1777434661356,-278.9766118,0.00031779,60]
[421324877,1777434661367,-200.4166695,0.00031779,60]
[421324878,1777434661377,-297.4037884,0.00031779,60]
[421324879,1777434661387,-526.9246233,0.00031779,60]
[421324880,1777434661398,-164.071661,0.00031779,60]
[421324881,1777434661409,-193.7803164,0.00031779,60]
[421324882,1777434661419,-167.8555444,0.00031779,60]
[421324883,1777434661429,-310.86726138,0.00031867,2]
[421324884,1777434661443,-600.0,0.0003194,21]
[421324885,1777434661454,-1753.33584843,0.00032,2]
[421324886,1777434661465,-739.0,0.0003215,30]
[421324887,1777434661475,-753.0,0.0003215,30]
[421324888,1777434661484,-159.0,0.0003215,30]
[421324889,1777434661495,-1015.0,0.0003215,30]
[421324890,1777434661505,-280.0,0.0003215,30]
[421324891,1777434661514,-505.0,0.0003215,30]
[421324892,1777434661523,-2614.0,0.0003215,30]
[421324893,1777434661534,-454.0,0.00032172,30]
[421324894,1777434661543,-159.0,0.00032172,30]
[421324895,1777434661553,-375.0,0.00032172,30]
[421324896,1777434661563,-589.0,0.00032172,30]
[421324897,1777434661572,-2000.0,0.00032221,2]
[421324898,1777434661582,-904.88537599,0.000323,2]
[421324899,1777434661592,-150.0,0.00032493,30]
[421324900,1777434661602,-1000.0,0.000325,2]
[421324901,1777434661612,-35237.71,0.000325,7]
[421324902,1777434661622,-600.0,0.000325,45]
[421324903,1777434661633,-502.77,0.00032555,45]
[421324904,1777434661642,-500.0,0.00032555,45]
[421324905,1777434661653,-500.0,0.00032555,45]
[421324906,1777434661663,-766.08,0.000326,14]
[421324907,1777434661673,-849.4,0.00032705,5]
[421324908,1777434661683,-1459.736676,0.00032877,7]
[421324909,1777434661694,-1459.736676,0.00032877,7]
[421324910,1777434661704,-1459.736676,0.00032877,7]
[421324911,1777434661715,-1459.736676,0.00032877,7]
[421324912,1777434661727,-1459.736676,0.00032877,7]
[421324913,1777434661738,-1459.736676,0.00032877,7]
[421324914,1777434661749,-1459.736676,0.00032877,7]
[421324915,1777434661759,-1459.736676,0.00032877,7]
[421324916,1777434661769,-1459.736676,0.00032877,7]
[421324917,1777434661778,-1459.736676,0.00032877,7]
[421324918,1777434661789,-1459.736676,0.00032877,7]
[421324919,1777434661800,-1459.736676,0.00032877,7]
[421324920,1777434661810,-1459.736676,0.00032877,7]
[421324921,1777434661820,-1459.736676,0.00032877,7]
[421324922,1777434661830,-1459.736676,0.00032877,7]
[421324923,1777434661840,-1459.736676,0.00032877,7]
[421324924,1777434661850,-1459.736676,0.00032877,7]
[421324925,1777434661860,-1459.736676,0.00032877,7]
[421324926,1777434661869,-1459.736676,0.00032877,7]
[421324927,1777434661879,-1459.736675,0.00032877,7]
[421324928,1777434661888,-359.08479106,0.000329,120]
[421324929,1777434661898,-207.43864328,0.000329,120]
[421324930,1777434661909,-170.46166471,0.00033,30]
[421324931,1777434661920,-569.412737,0.00033,14]
[421324932,1777434661930,-150.0,0.00033043,2]
[421324933,1777434661942,-739.0,0.0003315,30]
[421324934,1777434661952,-753.0,0.0003315,30]
[421324935,1777434661962,-159.0,0.0003315,30]
[421324936,1777434661972,-1015.0,0.0003315,30]
[421324937,1777434661982,-280.0,0.0003315,30]
[421324938,1777434661991,-505.0,0.0003315,30]
[421324939,1777434662001,-2614.0,0.0003315,30]
[421324940,1777434662011,-454.0,0.00033172,30]
[421324941,1777434662021,-159.0,0.00033172,30]
[421324942,1777434662030,-375.0,0.00033172,30]
[421324943,1777434662040,-589.0,0.00033172,30]
[421324944,1777434662050,-2028.02687,0.00033189,120]
[421324945,1777434662060,-506.0,0.000332,16]
[421324946,1777434662070,-373.14,0.000333,30]
[421324947,1777434662080,-155.0,0.00033452,15]
[421324948,1777434662089,-1410.66681205,0.00033459,94]
[421324949,1777434662099,-1226.81850135,0.000335,2]
[421324950,1777434662109,-340.82523683,0.00033512,95]
[421324951,1777434662119,-600.0,0.00033584,21]
[421324952,1777434662128,-175.32680543,0.00033617,95]
[421324953,1777434662138,-630.55,0.00033715,2]
[421324954,1777434662148,-359.08479106,0.000339,120]
[421324955,1777434662158,-207.43864328,0.000339,120]
[421324956,1777434662168,-604.61,0.000339,120]
[421324957,1777434662177,-17703.0,0.00034,45]
[421324958,1777434662187,-739.0,0.0003415,30]
[421324959,1777434662197,-753.0,0.0003415,30]
[421324960,1777434662206,-159.0,0.0003415,30]
[421324961,1777434662217,-1015.0,0.0003415,30]
[421324962,1777434662227,-280.0,0.0003415,30]
[421324963,1777434662237,-505.0,0.0003415,30]
[421324964,1777434662246,-2614.0,0.0003415,30]
[421324965,1777434662256,-454.0,0.00034172,30]
[421324966,1777434662266,-159.0,0.00034172,30]
[421324967,1777434662276,-375.0,0.00034172,30]
[421324968,1777434662287,-589.0,0.00034172,30]
[421324969,1777434662297,-828.0,0.00034247,2]
[421324970,1777434662307,-773.909,0.00034268,2]
[421324971,1777434662317,-1049.0,0.00034268,2]
[421324972,1777434662327,-387.37,0.00034301,30]
[421324973,1777434662337,-259.67,0.00034308,2]
[421324974,1777434662347,-259.67,0.00034308,2]
[421324975,1777434662357,-259.67,0.00034308,2]
[421324976,1777434662368,-259.67,0.00034308,2]
[421324977,1777434662378,-259.67,0.00034308,2]
[421324978,1777434662388,-259.67,0.00034308,2]
[421324979,1777434662399,-259.67,0.0003431,2]
[421324980,1777434662409,-259.67,0.0003431,2]
[421324981,1777434662418,-259.67,0.0003431,2]
[421324982,1777434662428,-259.67,0.0003431,2]
[421324983,1777434662438,-259.67,0.0003431,2]
[421324984,1777434662448,-259.67,0.0003431,2]
[421324985,1777434662458,-259.67,0.0003431,2]
[421324986,1777434662468,-259.74,0.00034312,2]
[421324987,1777434662478,-259.67,0.00034312,2]
[421324988,1777434662488,-259.67,0.00034312,2]
[421324989,1777434662499,-259.67,0.00034312,2]
[421324990,1777434662509,-259.67,0.00034312,2]
[421324991,1777434662519,-259.67,0.00034312,2]
[421324992,1777434662530,-259.67,0.00034312,2]
[421324993,1777434662541,-151.0,0.00034325,7]
[421324994,1777434662551,-151.0,0.00034325,7]
[421324995,1777434662562,-151.0,0.00034325,7]
[421324996,1777434662572,-315.842369,0.00034325,7]
[421324997,1777434662583,-315.842369,0.00034325,7]
[421324998,1777434662593,-315.842369,0.00034325,7]
[421324999,1777434662603,-315.842364,0.00034325,7]
[421325000,1777434662613,-14775.16,0.00034326,30]
[421325001,1777434662623,-2248.67,0.00034326,30]
[421325002,1777434662633,-608.72,0.00034326,30]
[421325003,1777434662643,-2094.23,0.00034326,30]
[421325004,1777434662653,-351.12,0.00034326,30]
[421325005,1777434662663,-306.64,0.000345,15]
[421325006,1777434662674,-411.53587614,0.00034622,120]
[421325007,1777434662685,-150.0,0.00034696,2]
[421325008,1777434662696,-35237.71,0.000347,7]
[421325009,1777434662706,-941.1,0.000347,90]
[421325010,1777434662796,-153.2139331,0.0003471,97]
[421325011,1777434662806,-411.53587614,0.00034717,120]
[421325012,1777434662815,-1500.0,0.00034795,2]
[421325013,1777434662825,-766.08,0.000348,14]
[421325014,1777434662834,-411.53587614,0.00034811,120]
[421325015,1777434662844,-1139.7,0.00034866,7]
[421325016,1777434662853,-209.0,0.0003488,30]
[421325017,1777434662863,-359.08479106,0.000349,120]
[421325018,1777434662872,-207.43864328,0.000349,120]
[421325019,1777434662881,-2000.0,0.000349,2]
[421325020,1777434662891,-411.53587614,0.00034906,120]
[421325021,1777434662901,-352.82707723,0.00034964,14]
[421325022,1777434662911,-1941.94621362,0.00035,2]
[421325023,1777434662920,-150.0,0.00035,2]
[421325024,1777434662930,-179.655,0.00035,2]
[421325025,1777434662939,-244.8,0.00035,2]
[421325026,1777434662949,-188.10753964,0.00035,120]
[421325027,1777434662958,-600.0,0.00035,60]
[421325028,1777434662968,-506.0,0.00035,18]
[421325029,1777434662978,-411.53587614,0.00035,120]
[421325030,1777434662987,-2000.0,0.00035022,2]
[421325031,1777434662997,-849.4,0.00035029,7]
[421325032,1777434663007,-411.53587614,0.00035095,120]
[421325033,1777434663017,-190.43,0.000351,90]
[421325034,1777434663027,-739.0,0.0003515,30]
[421325035,1777434663037,-753.0,0.0003515,30]
[421325036,1777434663046,-159.0,0.0003515,30]
[421325037,1777434663056,-1015.0,0.0003515,30]
[421325038,1777434663066,-280.0,0.0003515,30]
[421325039,1777434663077,-505.0,0.0003515,30]
[421325040,1777434663086,-2614.0,0.0003515,30]
[421325041,1777434663096,-454.0,0.00035172,30]
[421325042,1777434663106,-159.0,0.00035172,30]
[421325043,1777434663115,-375.0,0.00035172,30]
[421325044,1777434663125,-589.0,0.00035172,30]
[421325045,1777434663135,-411.53587614,0.00035189,120]
[421325046,1777434663146,-600.0,0.00035228,21]
[421325047,1777434663155,-411.53587614,0.00035284,120]
[421325048,1777434663166,-1139.7,0.00035285,7]
[421325049,1777434663175,-411.53587614,0.00035378,120]
[421325050,1777434663185,-373.14,0.000354,30]
[421325051,1777434663195,-249.49,0.000354,2]
[421325052,1777434663205,-3811.65,0.000354,2]
[421325053,1777434663215,-411.53587614,0.00035473,120]
[421325054,1777434663224,-411.53587614,0.00035567,120]
[421325055,1777434663234,-268.63,0.000356,7]
[421325056,1777434663244,-1226.56,0.000356,90]
[421325057,1777434663254,-150.69814802,0.00035616,7]
[421325058,1777434663264,-411.53587614,0.00035662,120]
[421325059,1777434663274,-1139.7,0.00035704,7]
[421325060,1777434663283,-175.47683268,0.00035742,99]
[421325061,1777434663295,-411.53587614,0.00035756,120]
[421325062,1777434663305,-411.53587614,0.00035851,120]
[421325063,1777434663314,-359.08479106,0.000359,120]
[421325064,1777434663325,-360.04710569,0.0003591,101]
[421325065,1777434663336,-411.53587614,0.00035945,120]
[421325066,1777434663346,-3960.94,0.00035993,43]
[421325067,1777434663356,-269.691,0.00035993,43]
[421325068,1777434663367,-207.02601384,0.00035994,3]
[421325069,1777434663377,-328.10405537,0.00035994,3]
[421325070,1777434663386,-1115.0,0.00036055,2]
[421325071,1777434663397,-1115.0,0.00036055,2]
[421325072,1777434663406,-1115.0,0.00036055,2]
[421325073,1777434663415,-1115.0,0.00036055,2]
[421325074,1777434663424,-1115.0,0.00036055,2]
[421325075,1777434663434,-1115.0,0.00036055,2]
[421325076,1777434663443,-1115.0,0.00036055,2]
[421325077,1777434663452,-1115.0,0.00036055,2]
[421325078,1777434663462,-300.0,0.00036055,2]
[421325079,1777434663472,-300.0,0.00036055,2]
[421325080,1777434663482,-300.0,0.00036055,2]
[421325081,1777434663492,-300.0,0.00036055,2]
[421325082,1777434663501,-300.0,0.00036055,2]
[421325083,1777434663511,-300.0,0.00036055,2]
[421325084,1777434663520,-300.0,0.00036055,2]
[421325085,1777434663529,-300.0,0.00036055,2]
[421325086,1777434663538,-300.0,0.00036055,2]
[421325087,1777434663547,-300.0,0.00036055,2]
[421325088,1777434663556,-300.0,0.00036055,2]
[421325089,1777434663567,-300.0,0.00036055,2]
[421325090,1777434663576,-300.0,0.00036055,2]
[421325091,1777434663586,-300.0,0.00036055,2]
[421325092,1777434663595,-300.0,0.00036055,2]
[421325093,1777434663605,-300.0,0.00036055,2]
[421325094,1777434663614,-300.0,0.00036055,2]
[421325095,1777434663624,-300.0,0.00036055,2]
[421325096,1777434663633,-300.0,0.00036055,2]
[421325097,1777434663643,-300.0,0.00036055,2]
[421325098,1777434663652,-300.0,0.00036055,2]
[421325099,1777434663662,-300.0,0.00036055,2]
[421325100,1777434663671,-300.0,0.00036055,2]
[421325101,1777434663680,-300.0,0.00036055,2]
[421325102,1777434663690,-300.0,0.00036055,2]
[421325103,1777434663699,-300.0,0.00036055,2]
[421325104,1777434663709,-300.0,0.00036055,2]
[421325105,1777434663719,-300.0,0.00036055,2]
[421325106,1777434663728,-300.0,0.00036055,2]
[421325107,1777434663737,-300.0,0.00036055,2]
[421325108,1777434663746,-300.0,0.00036055,2]
[421325109,1777434663755,-300.0,0.00036055,2]
[421325110,1777434663765,-300.0,0.00036055,2]
[421325111,1777434663775,-300.0,0.00036055,2]
[421325112,1777434663785,-300.0,0.00036055,2]
[421325113,1777434663795,-300.0,0.00036055,2]
[421325114,1777434663805,-300.0,0.00036055,2]
[421325115,1777434663815,-300.0,0.00036055,2]
[421325116,1777434663824,-300.0,0.00036055,2]
[421325117,1777434663834,-300.0,0.00036055,2]
[421325118,1777434663843,-300.0,0.00036055,2]
[421325119,1777434663853,-300.0,0.00036055,2]
[421325120,1777434663863,-300.0,0.00036055,2]
[421325121,1777434663873,-300.0,0.00036055,2]
[421325122,1777434663883,-300.0,0.00036055,2]
[421325123,1777434663893,-300.0,0.00036055,2]
[421325124,1777434663903,-300.0,0.00036055,2]
[421325125,1777434663912,-300.0,0.00036055,2]
[421325126,1777434663922,-300.0,0.00036055,2]
[421325127,1777434663932,-300.0,0.00036055,2]
[421325128,1777434663941,-300.0,0.00036055,2]
[421325129,1777434663950,-300.0,0.00036055,2]
[421325130,1777434663959,-300.0,0.00036055,2]
[421325131,1777434663968,-300.0,0.00036055,2]
[421325132,1777434663978,-300.0,0.00036055,2]
[421325133,1777434663988,-300.0,0.00036055,2]
[421325134,1777434663998,-300.0,0.00036055,2]
[421325135,1777434664010,-300.0,0.00036055,2]
[421325136,1777434664019,-300.0,0.00036055,2]
[421325137,1777434664029,-300.0,0.00036055,2]
[421325138,1777434664038,-300.0,0.00036055,2]
[421325139,1777434664048,-300.0,0.00036055,2]
[421325140,1777434664058,-300.0,0.00036055,2]
[421325141,1777434664067,-300.0,0.00036055,2]
[421325142,1777434664078,-223.429909,0.00036055,7]
[421325143,1777434664088,-223.429909,0.00036055,7]
[421325144,1777434664097,-223.429909,0.00036055,7]
[421325145,1777434664108,-223.429909,0.00036055,7]
[421325146,1777434664119,-446.71,0.0003611,30]
[421325147,1777434664128,-1139.7,0.00036123,30]
[421325148,1777434664138,-739.0,0.0003615,30]
[421325149,1777434664147,-753.0,0.0003615,30]
[421325150,1777434664156,-159.0,0.0003615,30]
[421325151,1777434664166,-1015.0,0.0003615,30]
[421325152,1777434664176,-280.0,0.0003615,30]
[421325153,1777434664185,-505.0,0.0003615,30]
[421325154,1777434664195,-2614.0,0.0003615,30]
[421325155,1777434664205,-454.0,0.00036172,30]
[421325156,1777434664216,-159.0,0.00036172,30]
[421325157,1777434664225,-375.0,0.00036172,30]
[421325158,1777434664235,-589.0,0.00036172,30]
[421325159,1777434664244,-170.63,0.00036201,120]
[421325160,1777434664254,-170.63,0.00036201,120]
[421325161,1777434664263,-170.64052051,0.00036201,120]
[421325162,1777434664273,-161.57324747,0.00036278,2]
[421325163,1777434664283,-150.0,0.0003643,2]
[421325164,1777434664293,-1139.7,0.00036542,30]
[421325165,1777434664302,-196.061129,0.00036542,7]
[421325166,1777434664312,-423.085212,0.00036556,120]
[421325167,1777434664322,-630.55,0.00036591,2]
[421325168,1777434664333,-1631.36463727,0.000368,2]
[421325169,1777434664343,-506.0,0.000368,20]
[421325170,1777434664352,-300.0,0.00036849,2]
[421325171,1777434664362,-300.0,0.00036849,2]
[421325172,1777434664372,-300.0,0.00036849,2]
[421325173,1777434664381,-300.0,0.00036849,2]
[421325174,1777434664392,-300.0,0.00036849,2]
[421325175,1777434664401,-300.0,0.00036849,2]
[421325176,1777434664411,-300.0,0.00036849,2]
[421325177,1777434664421,-300.0,0.00036849,2]
[421325178,1777434664431,-300.0,0.00036849,2]
[421325179,1777434664441,-300.0,0.00036849,2]
[421325180,1777434664450,-300.0,0.00036849,2]
[421325181,1777434664460,-300.0,0.00036849,2]
[421325182,1777434664470,-300.0,0.00036849,2]
[421325183,1777434664480,-300.0,0.00036849,2]
[421325184,1777434664490,-300.0,0.00036849,2]
[421325185,1777434664500,-300.0,0.00036849,2]
[421325186,1777434664510,-300.0,0.00036849,2]
[421325187,1777434664520,-300.0,0.00036849,2]
[421325188,1777434664529,-300.0,0.00036849,2]
[421325189,1777434664541,-300.0,0.00036849,2]
[421325190,1777434664551,-300.0,0.00036849,2]
[421325191,1777434664562,-300.0,0.00036849,2]
[421325192,1777434664571,-300.0,0.00036849,2]
[421325193,1777434664581,-300.0,0.00036849,2]
[421325194,1777434664591,-300.0,0.00036849,2]
[421325195,1777434664601,-300.0,0.00036849,2]
[421325196,1777434664612,-300.0,0.00036849,2]
[421325197,1777434664622,-300.0,0.00036849,2]
[421325198,1777434664633,-566.87288452,0.00036872,21]
[421325199,1777434664643,-310.86726138,0.00036883,2]
[421325200,1777434664653,-209.0,0.0003689,30]
[421325201,1777434664663,-1139.7,0.00036961,30]
[421325202,1777434664673,-365.0,0.00037,2]
[421325203,1777434664683,-167.80213464,0.00037,2]
[421325204,1777434664693,-1003.62058412,0.00037,2]
[421325205,1777434664703,-359.08479106,0.00037,120]
[421325206,1777434664713,-1595.83335192,0.00037063,102]
[421325207,1777434664723,-739.0,0.0003715,30]
[421325208,1777434664734,-753.0,0.0003715,30]
[421325209,1777434664744,-159.0,0.0003715,30]
[421325210,1777434664753,-1015.0,0.0003715,30]
[421325211,1777434664763,-280.0,0.0003715,30]
[421325212,1777434664773,-505.0,0.0003715,30]
[421325213,1777434664783,-2614.0,0.0003715,30]
[421325214,1777434664792,-454.0,0.00037172,30]
[421325215,1777434664802,-159.0,0.00037172,30]
[421325216,1777434664812,-375.0,0.00037172,30]
[421325217,1777434664821,-589.0,0.00037172,30]
[421325218,1777434664832,-190.53878736,0.000372,120]
[421325219,1777434664843,-190.53878735,0.000372,120]
[421325220,1777434664853,-190.53878735,0.000372,120]
[421325221,1777434664863,-1049.0,0.00037268,2]
[421325222,1777434664872,-630.77,0.0003734,2]
[421325223,1777434664882,-849.4,0.00037352,30]
[421325224,1777434664893,-1139.7,0.0003738,30]
[421325225,1777434664902,-600.0,0.000375,60]
[421325226,1777434664912,-154.32870131,0.0003767,104]
[421325227,1777434664922,-1139.7,0.00037799,30]
[421325228,1777434664933,-1842.046,0.000378,120]
[421325229,1777434664944,-1842.046,0.000378,60]
[421325230,1777434664956,-1842.04,0.000378,120]
[421325231,1777434664966,-10000.0,0.000378,120]
[421325232,1777434664978,-1644.03049878,0.00037822,5]
[421325233,1777434664988,-182.1552407,0.00037867,104]
[421325234,1777434664998,-204.86049482,0.0003788,2]
[421325235,1777434665009,-506.05,0.00037918,30]
[421325236,1777434665021,-268.63,0.00038,7]
[421325237,1777434665033,-150.0,0.00038,2]
[421325238,1777434665044,-297.4469958,0.000381,33]
[421325239,1777434665054,-223.429909,0.00038109,7]
[421325240,1777434665064,-223.429909,0.00038109,7]
[421325241,1777434665076,-223.429909,0.00038109,7]
[421325242,1777434665086,-223.429909,0.00038109,7]
[421325243,1777434665097,-522.7969653,0.00038125,2]
[421325244,1777434665107,-308.70809748,0.00038125,2]
[421325245,1777434665117,-488.18308728,0.00038125,2]
[421325246,1777434665127,-300.0,0.00038125,2]
[421325247,1777434665138,-1090.68759225,0.00038125,2]
[421325248,1777434665149,-300.0,0.00038125,2]
[421325249,1777434665160,-300.0,0.00038125,2]
[421325250,1777434665170,-300.0,0.00038125,2]
[421325251,1777434665180,-300.0,0.00038125,2]
[421325252,1777434665190,-490.8849483,0.00038125,2]
[421325253,1777434665200,-300.0,0.00038125,2]
[421325254,1777434665210,-300.0,0.00038125,2]
[421325255,1777434665221,-602.26446594,0.00038125,2]
[421325256,1777434665231,-300.0,0.00038125,2]
[421325257,1777434665241,-525.81465301,0.00038125,2]
[421325258,1777434665251,-1063.01711119,0.00038125,2]
[421325259,1777434665262,-890.14063137,0.00038125,2]
[421325260,1777434665272,-421.91213452,0.00038125,2]
[421325261,1777434665283,-300.71477813,0.00038125,2]
[421325262,1777434665293,-300.0,0.00038125,2]
[421325263,1777434665304,-300.0,0.00038125,2]
[421325264,1777434665314,-300.0,0.00038125,2]
[421325265,1777434665324,-843.58719573,0.00038125,2]
[421325266,1777434665334,-300.0,0.00038125,2]
[421325267,1777434665344,-1142.97864744,0.00038125,2]
[421325268,1777434665354,-308.45887195,0.00038125,2]
[421325269,1777434665364,-861.24516145,0.00038125,2]
[421325270,1777434665374,-309.75381598,0.00038125,2]
[421325271,1777434665385,-555.29312091,0.00038125,2]
[421325272,1777434665394,-462.16567766,0.00038125,2]
[421325273,1777434665405,-300.0,0.00038125,2]
[421325274,1777434665416,-433.05209526,0.00038125,2]
[421325275,1777434665427,-450.23931119,0.00038125,2]
[421325276,1777434665438,-300.0,0.00038125,2]
[421325277,1777434665449,-300.0,0.00038125,2]
[421325278,1777434665459,-303.76033018,0.00038125,2]
[421325279,1777434665469,-522.7969653,0.00038125,2]
[421325280,1777434665479,-308.70809748,0.00038125,2]
[421325281,1777434665490,-300.0,0.00038125,2]
[421325282,1777434665500,-1090.68759225,0.00038125,2]
[421325283,1777434665510,-300.0,0.00038125,2]
[421325284,1777434665520,-300.0,0.00038125,2]
[421325285,1777434665530,-300.0,0.00038125,2]
[421325286,1777434665540,-300.0,0.00038125,2]
[421325287,1777434665550,-490.8849483,0.00038125,2]
[421325288,1777434665560,-300.0,0.00038125,2]
[421325289,1777434665570,-505.60286954,0.00038125,2]
[421325290,1777434665580,-602.26446594,0.00038125,2]
[421325291,1777434665591,-300.0,0.00038125,2]
[421325292,1777434665601,-525.81465301,0.00038125,2]
[421325293,1777434665611,-1063.01711119,0.00038125,2]
[421325294,1777434665621,-890.14063137,0.00038125,2]
[421325295,1777434665631,-421.91213452,0.00038125,2]
[421325296,1777434665642,-300.71477813,0.00038125,2]
[421325297,1777434665653,-300.0,0.00038125,2]
[421325298,1777434665662,-300.0,0.00038125,2]
[421325299,1777434665672,-300.0,0.00038125,2]
[421325300,1777434665683,-843.58719573,0.00038125,2]
[421325301,1777434665693,-584.06047407,0.00038125,2]
[421325302,1777434665703,-1142.97864744,0.00038125,2]
[421325303,1777434665713,-308.45887195,0.00038125,2]
[421325304,1777434665723,-861.24516145,0.00038125,2]
[421325305,1777434665734,-309.75381598,0.00038125,2]
[421325306,1777434665744,-462.16567766,0.00038125,2]
[421325307,1777434665754,-300.0,0.00038125,2]
[421325308,1777434665764,-433.05209526,0.00038125,2]
[421325309,1777434665774,-450.23931119,0.00038125,2]
[421325310,1777434665785,-300.0,0.00038125,2]
[421325311,1777434665795,-300.0,0.00038125,2]
[421325312,1777434665805,-303.76033018,0.00038125,2]
[421325313,1777434665815,-522.7969653,0.00038125,2]
[421325314,1777434665825,-308.70809748,0.00038125,2]
[421325315,1777434665835,-300.0,0.00038125,2]
[421325316,1777434665845,-1090.68759225,0.00038125,2]
[421325317,1777434665855,-300.0,0.00038125,2]
[421325318,1777434665866,-551.56181717,0.00038125,2]
[421325319,1777434665875,-381.30589392,0.00038125,2]
[421325320,1777434665886,-300.0,0.00038125,2]
[421325321,1777434665896,-490.8849483,0.00038125,2]
[421325322,1777434665905,-300.0,0.00038125,2]
[421325323,1777434665916,-602.26446594,0.00038125,2]
[421325324,1777434665926,-300.0,0.00038125,2]
[421325325,1777434665936,-525.81465301,0.00038125,2]
[421325326,1777434665947,-1063.01711119,0.00038125,2]
[421325327,1777434665956,-890.14063137,0.00038125,2]
[421325328,1777434665967,-421.91213452,0.00038125,2]
[421325329,1777434665976,-300.71477813,0.00038125,2]
[421325330,1777434665986,-300.0,0.00038125,2]
[421325331,1777434665996,-300.0,0.00038125,2]
[421325332,1777434666007,-300.0,0.00038125,2]
[421325333,1777434666018,-843.58719573,0.00038125,2]
[421325334,1777434666029,-1142.97864744,0.00038125,2]
[421325335,1777434666039,-308.45887195,0.00038125,2]
[421325336,1777434666049,-861.24516145,0.00038125,2]
[421325337,1777434666059,-309.75381598,0.00038125,2]
[421325338,1777434666069,-462.16567766,0.00038125,2]
[421325339,1777434666080,-433.05209526,0.00038125,2]
[421325340,1777434666090,-450.23931119,0.00038125,2]
[421325341,1777434666100,-300.0,0.00038125,2]
[421325342,1777434666110,-300.0,0.00038125,2]
[421325343,1777434666120,-303.76033018,0.00038125,2]
[421325344,1777434666131,-522.7969653,0.00038125,2]
[421325345,1777434666140,-308.70809748,0.00038125,2]
[421325346,1777434666150,-300.0,0.00038125,2]
[421325347,1777434666160,-1090.68759225,0.00038125,2]
[421325348,1777434666170,-300.0,0.00038125,2]
[421325349,1777434666180,-300.0,0.00038125,2]
[421325350,1777434666191,-490.8849483,0.00038125,2]
[421325351,1777434666202,-546.63625529,0.00038125,2]
[421325352,1777434666212,-602.26446594,0.00038125,2]